bitfinex-derivatives/quotes_ETHF0:USTF0_20240907
["timestamp","ask_amount","ask_price","bid_price","bid_amount"]
[1725706402415,2.65839664,2286.6,2286.4,2.83603716]
[1725706402714,0.3646,2286.6,2286.5,0.43741]
[1725706403321,2.65839664,2286.6,2286.5,0.43741]
[1725706403509,0.3646,2286.6,2286.4,1.69742]
[1725706404112,0.3646,2286.6,2286.5,0.43741]
[1725706404427,2.29379664,2286.7,2286.5,1.69741]
[1725706404619,2.67059664,2286.8,2286.6,0.43739]
[1725706404816,2.67059664,2286.8,2286.7,0.83307]
[1725706405116,2.67059664,2286.8,2286.7,0.3957]
[1725706405623,2.67059664,2286.8,2286.6,3.2078]
[1725706406521,0.3768,2286.8,2286.6,3.2078]
[1725706409721,0.3768,2286.8,2286.7,1.26]
[1725706411736,0.3768,2286.8,2286.7,1.69737]
[1725706412523,0.3768,2286.8,2286.7,1.26]
[1725706413030,0.3768,2286.8,2286.7,1.6309]
[1725706413522,0.3768,2286.8,2286.7,2.06827]
[1725706421227,0.81415,2286.8,2286.7,1.6309]
[1725706421427,0.43738,2286.7,2286.5,2.0658]
[1725706422328,0.43738,2286.7,2286.5,1.6974]
[1725706422538,0.79478,2286.7,2286.5,1.6974]
[1725706423631,0.81416,2286.8,2286.6,0.43739]
[1725706425440,0.43737,2286.7,2286.5,1.6974]
[1725706427644,0.43737,2286.7,2286.6,0.43739]
[1725706427941,0.81417,2286.8,2286.6,0.43739]
[1725706430440,0.81417,2286.8,2286.7,0.3896]
[1725706430949,3.10796664,2286.8,2286.7,0.3896]
[1725706431243,0.81417,2286.8,2286.7,0.3896]
[1725706434334,0.43737,2286.7,2286.5,1.6974]
[1725706434537,1.4702,2286.8,2286.4,1.19142]
[1725706434735,0.43741,2286.5,2286.4,0.82442]
[1725706435346,1.4702,2286.8,2286.4,0.387]
[1725706435646,0.4374,2286.6,2286.5,0.43741]
[1725706436846,0.43739,2286.6,2286.5,0.43741]
[1725706437143,0.43738,2286.7,2286.5,1.69741]
[1725706437448,0.43738,2286.7,2286.6,0.3808]
[1725706441848,0.43738,2286.7,2286.6,0.81819]
[1725706442347,2.73117664,2286.7,2286.6,0.81819]
[1725706442843,2.73117664,2286.7,2286.6,0.3808]
[1725706443039,6.66739664,2286.7,2286.3,3.2078]
[1725706443241,2.73122664,2286.4,2286.3,3.2078]
[1725706443445,0.43746,2286.3,2286.1,0.83059]
[1725706443647,2.65333049,2286.2,2286.1,0.83059]
[1725706444344,0.363,2286.2,2286.1,0.83059]
[1725706444553,2.65333049,2286.2,2286.1,0.83059]
[1725706445946,2.29033049,2286.2,2286.1,0.83059]
[1725706446145,2.29033049,2286.2,2286.1,2.46089]
[1725706446547,2.8672458,2286.3,2286.1,2.46089]
[1725706446942,2.2928377,2286.2,2286.1,2.46089]
[1725706447248,2.2928731,2286.2,2286.1,2.46089]
[1725706447748,2.29311987,2286.3,2286.1,2.46089]
[1725706448341,2.29311987,2286.4,2286.1,2.46089]
[1725706448849,2.29311987,2286.3,2286.1,2.46089]
[1725706449260,2.73054987,2286.4,2286.1,2.46089]
[1725706449848,2.73054987,2286.4,2286.1,2.09059]
[1725706450153,2.29311987,2286.3,2286.0,4.70462716]
[1725706450352,0.43743,2286.4,2286.0,4.826]
[1725706450353,2.73054987,2286.4,2286.0,4.826]
[1725706450548,0.3704,2286.2,2286.1,0.43748]
[1725706452765,2.73054987,2286.4,2286.1,0.43748]
[1725706452961,3.12414987,2286.4,2286.2,0.3627]
[1725706453349,3.12414987,2286.4,2286.3,0.3962]
[1725706455666,3.6982758,2286.4,2286.3,0.3962]
[1725706455848,3.6982758,2286.4,2286.1,0.43747]
[1725706455849,0.43745,2286.3,2286.1,0.43747]
[1725706456046,2.72842821,2286.3,2286.1,0.43747]
[1725706457060,2.72842821,2286.3,2286.2,0.43747]
[1725706457255,2.29097821,2286.3,2286.2,0.43747]
[1725706460367,2.68457821,2286.4,2286.3,0.43745]
[1725706461765,0.3936,2286.4,2286.2,0.43745]
[1725706461964,0.3936,2286.4,2286.0,4.8335]
[1725706461965,2.68408649,2286.4,2286.3,0.43745]
[1725706462653,0.3936,2286.4,2286.3,0.43745]
[1725706462855,0.83103,2286.4,2286.2,0.43746]
[1725706463455,3.12151649,2286.4,2286.2,0.43746]
[1725706464454,0.83103,2286.4,2286.2,0.43746]
[1725706464662,3.12151649,2286.4,2286.2,0.43746]
[1725706464860,0.83103,2286.4,2286.2,0.43746]
[1725706465164,0.43746,2286.3,2286.1,0.43747]
[1725706466061,0.43745,2286.3,2286.1,0.43747]
[1725706466361,0.43745,2286.3,2286.2,0.43747]
[1725706466558,0.43745,2286.3,2286.1,0.43747]
[1725706467466,0.43745,2286.3,2286.2,0.43747]
[1725706468162,0.43745,2286.3,2286.0,3.5735]
[1725706469662,0.43745,2286.3,2286.1,0.43749]
[1725706469964,0.43745,2286.3,2286.2,0.43747]
[1725706472963,0.43745,2286.3,2286.1,0.43748]
[1725706473869,0.43745,2286.3,2286.2,0.43747]
[1725706474260,0.43745,2286.3,2286.1,0.43748]
[1725706476474,0.43745,2286.3,2286.2,0.43747]
[1725706478672,3.2608458,2286.4,2286.2,0.43747]
[1725706479279,3.3047058,2286.3,2286.1,0.43748]
[1725706479470,2.29249056,2286.2,2286.1,0.43748]
[1725706480174,2.72996056,2286.2,2286.0,0.80319]
[1725706480469,1.59039,2286.1,2286.0,0.3657]
[1725706480671,3.88288056,2286.1,2285.9,1.20092]
[1725706481067,2.29249056,2286.0,2285.9,1.20092]
[1725706481267,3.88288056,2286.1,2285.9,1.20092]
[1725706481475,2.29249056,2286.0,2285.9,1.20092]
[1725706482177,2.29249056,2286.0,2285.9,0.43752]
[1725706482777,2.29249056,2286.0,2285.8,0.81863]
[1725706482984,5.6344,2285.9,2285.4,1.13862716]
[1725706483275,5.6344,2285.9,2285.1,2.2818335]
[1725706483276,2.73031332,2285.5,2285.3,0.43763]
[1725706483672,2.73031332,2285.5,2284.9,7.40444]
[1725706483673,7.61699165,2285.4,2284.9,7.40444]
[1725706483879,2.29151336,2285.1,2285.0,0.43769]
[1725706484083,4.12589165,2285.3,2285.1,0.43768]
[1725706484084,2.29151336,2285.2,2285.1,0.43768]
[1725706484279,2.29151336,2285.3,2285.1,0.43768]
[1725706484983,2.29151336,2285.3,2285.2,0.43766]
[1725706485481,3.10424336,2285.4,2285.1,0.43767]
[1725706485675,3.10424336,2285.4,2285.0,1.26]
[1725706485676,2.66661336,2285.4,2285.2,0.80015]
[1725706485989,0.81273,2285.4,2285.2,0.3625]
[1725706487080,0.3751,2285.4,2285.2,0.3625]
[1725706487276,0.3751,2285.4,2285.2,0.80016]
[1725706487580,0.3751,2285.4,2285.2,0.3625]
[1725706488082,0.81272,2285.4,2285.2,0.3625]
[1725706488777,0.3751,2285.4,2285.2,0.80016]
[1725706488977,0.3751,2285.4,2285.2,1.17306]
[1725706495189,0.3751,2285.4,2285.3,0.43764]
[1725706503083,1.17259,2285.6,2285.4,0.43762]
[1725706503288,0.3787,2285.5,2285.4,0.43762]
[1725706504200,0.3787,2285.5,2285.3,0.43763]
[1725706506795,0.8163,2285.5,2285.3,0.43763]
[1725706506996,0.3787,2285.5,2285.3,0.43763]
[1725706507290,0.8163,2285.5,2285.3,0.43763]
[1725706509393,1.09411,2285.3,2284.9,0.43772]
[1725706509597,0.4377,2285.0,2284.8,0.43772]
[1725706509784,2.023,2285.2,2284.7,0.7777]
[1725706509991,0.43772,2284.9,2284.8,0.43773]
[1725706510296,0.43771,2285.0,2284.8,0.43773]
[1725706510591,0.43771,2285.0,2284.9,0.43772]
[1725706511193,0.43768,2285.1,2285.0,0.43769]
[1725706511584,0.763,2285.2,2285.0,0.43769]
[1725706511789,1.20066,2285.2,2285.0,0.43769]
[1725706511998,1.20066,2285.2,2285.1,0.43768]
[1725706512794,0.763,2285.2,2285.1,0.43768]
[1725706512995,3.2078,2285.7,2285.1,8.8438]
[1725706513185,2.29151336,2285.8,2285.1,8.8438]
[1725706513186,0.80726,2285.8,2285.2,0.3901]
[1725706513391,0.80726,2285.8,2285.5,0.43759]
[1725706513586,0.80726,2285.8,2285.6,0.3781]
[1725706513891,0.3697,2285.8,2285.6,0.81568]
[1725706514102,0.80725,2285.8,2285.6,0.3781]
[1725706514594,8.843,2285.7,2284.9,4.19664]
[1725706514789,0.43769,2285.1,2284.9,4.19664]
[1725706514991,0.7314,2285.0,2284.6,3.2078]
[1725706515186,0.7314,2285.0,2284.8,0.43773]
[1725706515897,1.1691,2285.0,2284.8,0.43773]
[1725706516293,0.7314,2285.0,2284.8,0.43773]
[1725706519198,0.7314,2285.0,2284.8,3.64553]
[1725706519898,1.1691,2285.0,2284.8,3.2078]
[1725706520099,1.1691,2285.0,2284.8,3.64553]
[1725706520299,0.7314,2285.0,2284.8,3.64553]
[1725706520599,1.1691,2285.0,2284.8,0.43773]
[1725706522302,1.1691,2285.0,2284.9,0.3929]
[1725706522797,1.1691,2285.0,2284.7,0.43774]
[1725706522990,1.1691,2285.0,2284.8,0.43773]
[1725706523395,1.1691,2285.0,2284.9,0.3929]
[1725706524599,0.43775,2284.8,2284.6,0.43776]
[1725706524797,0.43775,2284.8,2284.6,0.81926]
[1725706526596,0.43775,2284.8,2284.7,0.43775]
[1725706527497,0.43773,2284.9,2284.7,0.43775]
[1725706528699,0.43774,2284.8,2284.6,0.81926]
[1725706529602,0.83034,2284.8,2284.6,0.81926]
[1725706530003,0.83034,2284.8,2284.6,0.3815]
[1725706530208,0.83034,2284.8,2284.6,0.81927]
[1725706530406,0.43775,2284.7,2284.6,0.3815]
[1725706531817,0.43775,2284.7,2284.6,0.81927]
[1725706532000,0.43775,2284.7,2284.6,0.3815]
[1725706533110,0.43775,2284.7,2284.6,0.81927]
[1725706534012,0.7643,2284.8,2284.7,0.43775]
[1725706534204,0.43774,2284.8,2284.7,0.43775]
[1725706534803,0.43774,2284.8,2284.6,0.81926]
[1725706535709,0.81264,2284.8,2284.6,0.81926]
[1725706536009,0.81264,2284.8,2284.6,0.43776]
[1725706536210,0.81264,2284.8,2284.6,0.80756]
[1725706541016,0.43775,2284.7,2284.6,0.3698]
[1725706541913,0.43775,2284.7,2284.6,0.80757]
[1725706542214,0.81265,2284.8,2284.6,0.80757]
[1725706542917,0.43775,2284.8,2284.6,0.80757]
[1725706543810,0.43775,2284.7,2284.6,0.80757]
[1725706545214,0.43775,2284.7,2284.6,0.43777]
[1725706550419,0.43775,2284.7,2284.5,4.41858]
[1725706550613,0.43775,2284.7,2284.5,1.21078]
[1725706554623,0.377,2284.6,2284.5,1.21078]
[1725706555122,0.81477,2284.6,2284.5,1.21078]
[1725706555418,1.17717,2284.6,2284.5,1.21078]
[1725706555620,0.43779,2284.5,2284.4,3.5998]
[1725706555813,0.80889,2284.5,2284.4,3.2078]
[1725706556013,0.43782,2284.4,2284.2,1.60434]
[1725706556218,0.43782,2284.4,2284.3,0.43783]
[1725706556413,0.80891,2284.5,2284.3,0.43783]
[1725706557021,3.10042336,2284.5,2284.3,0.43783]
[1725706558321,0.80891,2284.5,2284.3,0.43783]
[1725706558933,0.80891,2284.5,2284.4,0.43781]
[1725706559427,2.29151336,2284.5,2284.4,0.43781]
[1725706559630,2.72929336,2284.6,2284.4,0.43781]
[1725706560015,2.7291376,2284.6,2284.5,0.3663]
[1725706560219,2.7291552,2284.6,2284.5,0.3663]
[1725706560424,3.30367165,2284.6,2284.5,0.3663]
[1725706561028,0.43781,2284.5,2284.3,0.43782]
[1725706561229,0.43781,2284.4,2284.3,0.3824]
[1725706562328,2.73023393,2284.4,2284.3,0.3824]
[1725706562725,0.43781,2284.4,2284.3,0.3824]
[1725706562933,2.73023393,2284.4,2284.3,0.3824]
[1725706563234,3.99023393,2284.4,2284.3,0.3824]
[1725706564534,8.36783393,2284.4,2284.2,0.43785]
[1725706564847,3.99023393,2284.4,2284.2,0.43785]
[1725706565135,2.29242393,2284.3,2284.2,0.43785]
[1725706565334,2.73027393,2284.3,2284.1,1.1285]
[1725706565634,0.81705,2284.2,2284.1,1.1285]
[1725706565933,2.67162393,2284.2,2284.1,1.1285]
[1725706566534,0.3792,2284.2,2284.1,1.1285]
[1725706566733,0.3792,2284.2,2284.1,1.56637]
[1725706567043,2.29242393,2284.4,2284.1,1.56637]
[1725706567339,3.09054393,2284.4,2284.1,1.56636]
[1725706568337,3.09054393,2284.4,2284.1,1.1285]
[1725706568631,3.09054393,2284.4,2284.1,1.56636]
[1725706569547,2.29242393,2284.3,2284.1,1.56636]
[1725706569933,3.09054393,2284.4,2284.1,1.56636]
[1725706570840,2.65272393,2284.4,2284.1,1.56636]
[1725706571037,3.09053393,2284.4,2284.1,1.56636]
[1725706572043,2.65272393,2284.4,2284.1,1.56636]
[1725706572949,3.09053393,2284.4,2284.1,1.56636]
[1725706574046,2.65272393,2284.4,2284.2,0.43784]
[1725706577146,0.3603,2284.4,2284.2,0.43784]
[1725706578153,3.07912393,2284.5,2284.3,0.43783]
[1725706578444,2.62096483,2284.9,2284.8,0.43774]
[1725706578638,2.29242393,2284.9,2284.8,0.43774]
[1725706578839,2.29242393,2285.0,2284.9,0.43772]
[1725706579244,2.29242393,2285.0,2284.8,0.43773]
[1725706580941,2.29242393,2285.0,2284.7,0.3667]
[1725706580942,2.29242393,2285.0,2284.9,0.43772]
[1725706581244,4.05149165,2285.1,2284.9,3.64552]
[1725706581245,3.08192393,2285.1,2284.9,3.64552]
[1725706581449,3.08192393,2285.1,2285.0,0.3578]
[1725706581750,3.08192393,2285.1,2285.0,0.7296]
[1725706582151,3.08192393,2285.1,2285.0,0.3718]
[1725706582449,3.08192393,2285.1,2284.7,0.3815]
[1725706582450,0.4377,2285.0,2284.7,0.3815]
[1725706582641,0.3641,2284.9,2284.6,3.966]
[1725706582847,0.3641,2284.9,2284.6,4.40377]
[1725706583151,0.3736,2284.8,2284.6,4.40377]
[1725706584440,0.3736,2284.8,2284.7,0.43775]
[1725706586648,0.3736,2284.8,2284.6,4.40376]
[1725706587560,0.3736,2284.8,2284.7,0.43775]
[1725706591652,2.66132122,2284.8,2284.7,0.43775]
[1725706591849,2.66132492,2284.8,2284.7,0.43775]
[1725706592051,2.66132492,2284.8,2284.6,4.40376]
[1725706592351,2.28774078,2284.7,2284.6,4.40376]
[1725706594156,2.65924078,2284.7,2284.6,4.40376]
[1725706594953,2.65924078,2284.7,2284.6,4.03386]
[1725706595251,2.65924078,2284.7,2284.6,0.82606]
[1725706595851,2.28774078,2284.7,2284.6,0.82606]
[1725706596654,0.3736,2284.8,2284.7,0.43775]
[1725706597559,2.66100816,2284.8,2284.7,0.43775]
[1725706598357,0.3736,2284.8,2284.7,0.43775]
[1725706602256,0.3736,2284.8,2284.7,0.80455]
[1725706603157,0.3641,2284.9,2284.8,0.43774]
[1725706603356,0.3641,2284.9,2284.8,0.80624]
[1725706604265,0.3641,2284.9,2284.8,0.43774]
[1725706605266,0.3641,2284.9,2284.7,0.80454]
[1725706605558,2.28739543,2284.8,2284.7,0.43775]
[1725706613465,0.3641,2284.9,2284.7,0.43775]
[1725706614361,0.43775,2284.7,2284.3,2.84656791]
[1725706614668,0.3645,2284.6,2284.3,0.43782]
[1725706614869,0.3781,2284.5,2284.2,3.5819]
[1725706615066,0.43781,2284.4,2284.2,3.5819]
[1725706615369,0.3781,2284.5,2284.2,3.5819]
[1725706615564,0.3933,2284.3,2284.2,0.3741]
[1725706616556,0.3933,2284.3,2284.2,0.81195]
[1725706616760,2.66549543,2284.5,2284.2,0.81195]
[1725706616761,0.3781,2284.5,2284.2,0.81195]
[1725706617058,0.7636,2284.5,2284.2,0.81195]
[1725706617966,1.20139,2284.5,2284.2,0.81195]
[1725706618662,3.48878543,2284.5,2284.2,0.3741]
[1725706618866,3.48878543,2284.5,2284.1,1.18346]
[1725706619064,3.48878543,2284.5,2284.2,0.43785]
[1725706620062,3.05099543,2284.5,2284.0,1.13862716]
[1725706620362,0.43784,2284.3,2284.0,0.43789]
[1725706620567,0.43784,2284.3,2284.1,0.3597]
[1725706620765,0.3572,2284.2,2284.1,0.3597]
[1725706621268,0.3572,2284.2,2284.1,0.79757]
[1725706621463,2.28739543,2284.4,2284.2,0.43785]
[1725706621760,2.64459543,2284.4,2284.2,1.19485]
[1725706622167,0.3572,2284.4,2284.2,1.19485]
[1725706622564,2.64459543,2284.4,2284.2,0.757]
[1725706623672,2.64459543,2284.4,2284.2,1.19485]
[1725706623864,0.3572,2284.4,2284.3,0.43783]
[1725706624063,2.28739543,2284.5,2284.4,0.43781]
[1725706624468,3.01029543,2284.6,2284.4,0.43781]
[1725706627568,3.01029543,2284.6,2284.5,0.43779]
[1725706628671,3.01029543,2284.6,2284.4,0.4378]
[1725706628874,2.28739543,2284.7,2284.5,0.43779]
[1725706629071,2.28739543,2284.7,2284.6,0.7289]
[1725706629671,2.28739543,2284.7,2284.6,1.16667]
[1725706630174,2.28739543,2284.7,2284.6,0.7289]
[1725706630571,2.28739543,2284.7,2284.6,1.16667]
[1725706633168,2.28739543,2284.7,2284.6,0.7289]
[1725706633374,2.28739543,2284.7,2284.6,1.16667]
[1725706633776,2.28739543,2284.7,2284.6,0.3623]
[1725706633975,2.28739543,2284.7,2284.5,0.82448]
[1725706634378,2.28739543,2284.7,2284.4,0.4378]
[1725706634579,2.28739543,2284.6,2284.4,0.4378]
[1725706634784,0.7624,2284.5,2284.4,0.4378]
[1725706634984,1.1432,2284.5,2284.4,0.4378]
[1725706635683,3.43059543,2284.5,2284.4,0.4378]
[1725706637981,3.43059543,2284.5,2284.2,0.81484]
[1725706638280,2.28739543,2284.4,2284.2,0.81484]
[1725706640996,0.43784,2284.3,2284.1,3.2078]
[1725706641299,2.72523543,2284.3,2284.1,3.2078]
[1725706641591,2.64639543,2284.2,2284.1,3.2078]
[1725706642396,0.43787,2284.1,2283.8,0.43791]
[1725706642584,3.47814239,2284.1,2283.8,0.82231]
[1725706643696,1.19107,2284.1,2283.8,0.82231]
[1725706644088,0.4379,2284.0,2283.8,0.3844]
[1725706644694,0.3885,2283.9,2283.8,0.3844]
[1725706649195,0.3885,2283.9,2283.7,3.64573]
[1725706651295,0.3885,2283.9,2283.6,6.93878962]
[1725706651296,1.26,2283.8,2283.6,1.1473]
[1725706651498,0.7475,2283.7,2283.6,0.3923]
[1725706651704,1.18545,2283.7,2283.6,0.3923]
[1725706651893,0.7475,2283.7,2283.6,0.3923]
[1725706654393,0.7475,2283.7,2283.6,0.83027]
[1725706657004,1.18545,2283.7,2283.6,0.83027]
[1725706657192,1.18545,2283.7,2283.6,0.3923]
[1725706657505,1.18545,2283.7,2283.6,0.83027]
[1725706657702,0.7475,2283.7,2283.6,0.83027]
[1725706659399,1.69794,2283.8,2283.6,0.83027]
[1725706662399,0.43795,2283.7,2283.6,0.43797]
[1725706666113,2.35485,2283.8,2283.4,0.80429]
[1725706666408,0.43798,2283.5,2283.4,0.3663]
[1725706667005,1.17838,2283.5,2283.4,0.3663]
[1725706669208,1.17838,2283.5,2283.4,0.8043]
[1725706669907,0.81608,2283.6,2283.4,0.8043]
[1725706671303,0.3781,2283.6,2283.4,0.8043]
[1725706671508,0.81607,2283.6,2283.5,0.43798]
[1725706671713,0.81607,2283.6,2283.4,0.80429]
[1725706673809,0.81607,2283.6,2283.4,0.3663]
[1725706674506,0.81607,2283.6,2283.4,0.8043]
[1725706677312,0.3781,2283.6,2283.5,0.43798]
[1725706677505,0.81607,2283.6,2283.4,0.80429]
[1725706678899,0.43798,2283.5,2283.4,0.80429]
[1725706679110,0.43798,2283.5,2283.4,0.3663]
[1725706679998,0.43798,2283.5,2283.4,0.8043]
[1725706680807,0.43798,2283.5,2283.4,0.438]
[1725706682206,0.43798,2283.5,2283.3,1.18211]
[1725706682408,0.43798,2283.5,2283.4,0.438]
[1725706685518,0.81608,2283.6,2283.4,0.438]
[1725706686111,2.86589165,2283.9,2283.5,9.2245]
[1725706686320,2.28707239,2284.3,2284.1,0.43786]
[1725706686509,2.28707239,2284.3,2284.2,1.0956]
[1725706686709,4.37589239,2284.4,2284.2,1.0956]
[1725706687421,2.28707239,2284.3,2284.2,1.0956]
[1725706688911,2.28707239,2284.3,2284.2,1.53345]
[1725706689124,2.28707239,2284.3,2284.2,1.0956]
[1725706689324,4.37589239,2284.4,2284.2,1.0956]
[1725706689815,2.28707239,2284.3,2284.2,1.0956]
[1725706690211,4.37589239,2284.4,2284.2,1.0956]
[1725706690720,4.37589239,2284.4,2284.2,1.53345]
[1725706691715,1.651,2284.4,2284.3,0.43783]
[1725706691921,3.93807239,2284.4,2284.2,1.53344]
[1725706692218,1.651,2284.4,2284.2,1.53344]
[1725706692812,1.651,2284.4,2284.2,1.53345]
[1725706694223,2.08881,2284.4,2284.2,1.0956]
[1725706694526,1.651,2284.4,2284.2,1.53345]
[1725706694819,1.651,2284.4,2284.2,4.74125]
[1725706695224,2.08881,2284.4,2284.2,4.3034]
[1725706695916,3.54707239,2284.4,2284.2,4.74125]
[1725706696117,2.28707239,2284.4,2284.2,4.74125]
[1725706696318,3.10018239,2284.5,2284.2,4.74125]
[1725706700319,0.43781,2284.4,2284.2,4.3034]
[1725706700624,3.10017239,2284.5,2284.2,4.74124]
[1725706701326,2.66237239,2284.5,2284.3,0.43782]
[1725706701527,0.3753,2284.5,2284.3,0.43782]
[1725706701720,0.8131,2284.5,2284.2,4.74124]
[1725706701929,3.10017239,2284.5,2284.2,4.74124]
[1725706702321,0.43781,2284.4,2284.2,4.74124]
[1725706702627,3.10018239,2284.5,2284.2,4.74124]
[1725706703023,0.81311,2284.5,2284.2,4.74124]
[1725706703230,0.43782,2284.4,2284.2,4.74124]
[1725706704021,0.43782,2284.4,2284.2,1.53344]
[1725706704227,0.43782,2284.4,2284.2,1.0956]
[1725706704435,1.18363,2284.3,2284.2,1.0956]
[1725706704621,0.7458,2284.3,2284.2,1.53345]
[1725706704821,1.18363,2284.3,2284.2,0.3775]
[1725706705025,1.18363,2284.3,2283.8,3.2078]
[1725706705026,0.43786,2284.2,2284.0,1.21878]
[1725706705226,0.43789,2284.0,2283.9,0.3817]
[1725706705425,0.3746,2284.1,2283.9,0.3817]
[1725706705624,0.81248,2284.1,2283.9,0.8196]
[1725706706421,0.43789,2284.0,2283.9,0.3817]
[1725706706929,0.43789,2284.0,2283.9,4.7601]
[1725706707125,0.81248,2284.1,2283.9,4.7601]
[1725706707328,0.3691,2284.0,2283.9,0.3817]
[1725706707528,0.3691,2284.0,2283.9,0.81961]
[1725706707733,0.3691,2284.0,2283.9,4.7601]
[1725706708024,0.3691,2284.0,2283.9,5.19801]
[1725706708228,0.3746,2284.1,2283.9,5.19801]
[1725706708432,0.3746,2284.1,2283.9,0.81961]
[1725706708628,0.3746,2284.1,2283.9,0.81959]
[1725706708932,0.3746,2284.1,2283.9,0.3817]
[1725706709226,0.3746,2284.1,2283.9,0.8196]
[1725706710032,0.81247,2284.1,2283.9,0.3817]
[1725706710629,0.3691,2284.2,2284.0,0.43788]
[1725706710932,0.80695,2284.2,2284.0,0.43788]
[1725706711127,0.3691,2284.2,2284.0,0.43788]
[1725706712732,0.80696,2284.2,2283.9,0.81959]
[1725706714029,0.80696,2284.2,2284.0,0.43789]
[1725706718731,0.3691,2284.2,2284.0,0.43789]
[1725706718930,0.80695,2284.2,2284.0,0.43789]
[1725706719324,0.80695,2284.2,2283.9,0.8196]
[1725706719325,0.43788,2284.1,2283.9,0.8196]
[1725706719530,0.80697,2284.2,2284.0,0.43789]
[1725706720231,0.80697,2284.2,2283.9,0.3817]
[1725706720232,0.43787,2284.1,2283.9,0.81959]
[1725706720435,0.80696,2284.2,2283.9,0.81959]
[1725706720638,0.80696,2284.2,2284.0,0.43788]
[1725706723936,3.09403239,2284.2,2284.0,0.43788]
[1725706725637,3.09403239,2284.2,2284.0,0.80688]
[1725706729141,0.4379,2284.0,2283.8,3.64571]
[1725706729351,0.3861,2283.9,2283.8,4.02791]
[1725706729845,0.3861,2283.9,2283.8,8.40631]
[1725706733546,0.3861,2283.9,2283.8,5.19851]
[1725706733845,2.28707239,2284.0,2283.9,0.43791]
[1725706734043,2.28707239,2284.1,2284.0,0.43789]
[1725706739347,2.29433946,2284.1,2284.0,0.43789]
[1725706741249,2.86589165,2284.2,2284.1,0.43787]
[1725706741456,2.86589165,2284.2,2284.0,0.43788]
[1725706741643,2.29428669,2284.1,2284.0,0.43788]
[1725706742760,2.29428669,2284.1,2284.0,4.81628]
[1725706743559,2.29428669,2284.1,2284.0,5.56438]
[1725706743855,2.86589165,2284.2,2284.0,5.56438]
[1725706744047,2.86589165,2284.2,2284.0,1.18598]
[1725706744242,2.29420537,2284.1,2284.0,1.18598]
[1725706744449,2.86589165,2284.2,2284.0,1.18598]
[1725706744656,2.86589165,2284.2,2284.1,0.43787]
[1725706745048,2.86589165,2284.2,2284.0,1.18598]
[1725706747554,2.86589165,2284.1,2284.0,1.18598]
[1725706748358,0.43785,2284.2,2283.9,0.4379]
[1725706748659,4.03228581,2284.0,2283.8,4.78434716]
[1725706748861,4.03228581,2284.0,2283.8,3.64572]
[1725706749067,2.29516967,2283.9,2283.8,3.64572]
[1725706749252,4.03228581,2284.0,2283.8,4.78434716]
[1725706749450,3.59439581,2284.0,2283.8,4.78434716]
[1725706749653,3.59439581,2284.0,2283.8,3.64572]
[1725706749860,3.98769581,2284.0,2283.8,3.64572]
[1725706750163,2.86889581,2284.0,2283.9,0.43791]
[1725706750561,2.86889581,2284.1,2284.0,0.43789]
[1725706750858,2.86889581,2284.1,2284.0,1.18189]
[1725706751055,4.2651644,2284.3,2284.1,0.43787]
[1725706751254,3.8273244,2284.3,2284.1,0.43787]
[1725706751451,4.2651544,2284.3,2284.1,0.43787]
[1725706752465,4.2651544,2284.3,2284.1,0.79667]
[1725706753365,10.1677544,2284.2,2283.8,3.2078]
[1725706753656,2.86972229,2283.9,2283.8,3.2078]
[1725706753964,2.86972229,2283.9,2283.8,3.64573]
[1725706754265,3.25482229,2283.9,2283.8,3.64573]
[1725706755268,3.69273229,2283.9,2283.8,3.2078]
[1725706755465,3.25482229,2283.9,2283.8,3.64573]
[1725706755866,0.3851,2283.9,2283.8,4.78435716]
[1725706756365,0.3851,2283.9,2283.8,3.64573]
[1725706757055,3.25482229,2283.9,2283.8,3.64573]
[1725706757664,0.3851,2283.9,2283.8,3.64573]
[1725706758856,10.32608,2283.9,2283.7,1.13862716]
[1725706759062,0.438,2283.4,2283.2,3.28460791]
[1725706759257,0.3653,2283.3,2283.2,2.14598075]
[1725706759563,0.3653,2283.3,2283.2,1.58673423]
[1725706760160,2.29484046,2283.4,2283.3,0.43802]
[1725706760358,2.29484046,2283.5,2283.4,0.438]
[1725706760568,3.23385058,2283.7,2283.5,0.43798]
[1725706760569,2.29484046,2283.6,2283.5,0.43798]
[1725706761464,2.29484046,2283.6,2283.4,1.56969]
[1725706761969,2.29484046,2283.6,2283.5,0.43798]
[1725706763456,2.66014046,2283.7,2283.5,0.43798]
[1725706763670,0.3653,2283.7,2283.5,0.43798]
[1725706763871,0.80325,2283.7,2283.5,0.43798]
[1725706764274,0.3653,2283.7,2283.5,0.43798]
[1725706764469,2.73278046,2283.8,2283.6,0.43797]
[1725706764664,2.73278046,2283.8,2283.7,1.1397]
[1725706765665,2.73278046,2283.8,2283.7,0.7451]
[1725706768070,2.73278046,2283.8,2283.7,0.3861]
[1725706772403,0.43796,2283.7,2283.5,1.19647]
[1725706772594,0.81606,2283.7,2283.5,1.19647]
[1725706775098,0.81606,2283.7,2283.6,0.43797]
[1725706775396,0.81606,2283.7,2283.5,0.7585]
[1725706775899,0.81606,2283.7,2283.5,1.19648]
[1725706776801,0.3781,2283.7,2283.6,0.43797]
[1725706777293,0.3781,2283.7,2283.5,1.19647]
[1725706777697,0.3781,2283.7,2283.6,0.43797]
[1725706777900,0.3781,2283.7,2283.5,1.19647]
[1725706778701,0.81605,2283.7,2283.5,1.19647]
[1725706780201,1.53289,2283.6,2283.5,0.3739]
[1725706780897,0.438,2283.4,2283.3,0.43802]
[1725706782198,0.43802,2283.3,2283.2,1.61174]
[1725706782394,0.83282,2283.3,2283.2,1.61174]
[1725706783897,0.83282,2283.3,2283.2,1.1737]
[1725706786500,0.83282,2283.3,2283.2,0.7833]